[Event "Early-Titled-Tuesday-Blitz-February-13-2024"]
[Site "Chess.com"]
[Date "2024.02.13"]
[Round "10"]
[White "Zavgorodniy_Sergiy"]
[Black "Polish_fighter3000"]
[Result "0-1"]
[WhiteElo "2674"]
[BlackElo "3071"]
[TimeControl "180+1"]
[EndTime "10:00:25 PST"]
[Termination "Polish_fighter3000 won by checkmate"]

1. d4 {[%clk 0:03:00.9]} 1... Nf6 {[%clk 0:02:58.6]} 2. c4 {[%clk 0:03:01.1]}
2... e6 {[%clk 0:02:58.1]} 3. Nf3 {[%clk 0:03:01.5]} 3... Bb4+ {[%clk
0:02:57.3]} 4. Nbd2 {[%clk 0:03:01.3]} 4... b6 {[%clk 0:02:55]} 5. g3 {[%clk
0:03:01.8]} 5... Bb7 {[%clk 0:02:53.4]} 6. Bg2 {[%clk 0:03:02.2]} 6... O-O
{[%clk 0:02:48.1]} 7. O-O {[%clk 0:03:02.4]} 7... d6 {[%clk 0:02:47.1]} 8. Nb3
{[%clk 0:02:55.2]} 8... d5 {[%clk 0:02:37.2]} 9. c5 {[%clk 0:02:55.2]} 9... bxc5
{[%clk 0:02:33.1]} 10. dxc5 {[%clk 0:02:55.4]} 10... Nbd7 {[%clk 0:02:31]} 11.
Qc2 {[%clk 0:02:55.2]} 11... c6 {[%clk 0:02:27.2]} 12. a3 {[%clk 0:02:55.1]}
12... Ba5 {[%clk 0:02:27.7]} 13. Nxa5 {[%clk 0:02:55.4]} 13... Qxa5 {[%clk
0:02:28.6]} 14. b4 {[%clk 0:02:56]} 14... Qc7 {[%clk 0:02:29.1]} 15. Bb2 {[%clk
0:02:56.4]} 15... e5 {[%clk 0:02:25.3]} 16. e3 {[%clk 0:02:54.6]} 16... a5
{[%clk 0:02:25.1]} 17. Rfb1 {[%clk 0:02:49.1]} 17... Ba6 {[%clk 0:02:24.8]} 18.
Bf1 {[%clk 0:02:46.9]} 18... h6 {[%clk 0:02:20.3]} 19. Bxa6 {[%clk 0:02:44.1]}
19... Rxa6 {[%clk 0:02:21.2]} 20. Bc3 {[%clk 0:02:43.9]} 20... Ne4 {[%clk
0:02:15.1]} 21. Nd2 {[%clk 0:02:37.4]} 21... Ng5 {[%clk 0:01:40.3]} 22. Kg2
{[%clk 0:02:34.6]} 22... Rfa8 {[%clk 0:01:31]} 23. h4 {[%clk 0:02:25.9]} 23...
Ne6 {[%clk 0:01:31]} 24. Nb3 {[%clk 0:02:24.9]} 24... a4 {[%clk 0:01:10.6]} 25.
Nd2 {[%clk 0:02:22.8]} 25... Rf8 {[%clk 0:01:06.3]} 26. Qf5 {[%clk 0:02:11.2]}
26... g6 {[%clk 0:01:03.6]} 27. Qd3 {[%clk 0:02:09.1]} 27... Raa8 {[%clk
0:01:02.2]} 28. h5 {[%clk 0:01:54.8]} 28... e4 {[%clk 0:00:56.5]} 29. Qe2 {[%clk
0:01:49.1]} 29... g5 {[%clk 0:00:56.7]} 30. f4 {[%clk 0:01:34.4]} 30... f5
{[%clk 0:00:49.4]} 31. Rf1 {[%clk 0:01:17.9]} 31... Kh7 {[%clk 0:00:48.9]} 32.
Rf2 {[%clk 0:01:05.4]} 32... Rf7 {[%clk 0:00:48.8]} 33. Raf1 {[%clk 0:01:04.6]}
33... Rg8 {[%clk 0:00:49.3]} 34. Kh2 {[%clk 0:01:02.3]} 34... gxf4 {[%clk
0:00:37.8]} 35. gxf4 {[%clk 0:00:53.3]} 35... Qd8 {[%clk 0:00:36.8]} 36. Rg2
{[%clk 0:00:53.7]} 36... d4 {[%clk 0:00:33.6]} 37. Rxg8 {[%clk 0:00:43.3]} 37...
Qh4+ {[%clk 0:00:33.4]} 38. Kg1 {[%clk 0:00:38.8]} 38... Kxg8 {[%clk 0:00:34.3]}
39. Rf2 {[%clk 0:00:30.2]} 39... dxc3 {[%clk 0:00:29.9]} 40. Rg2+ {[%clk
0:00:30.5]} 40... Rg7 {[%clk 0:00:26.3]} 41. Qc4 {[%clk 0:00:30.2]} 41... Qf6
{[%clk 0:00:11.7]} 42. Nf1 {[%clk 0:00:23]} 42... Kh7 {[%clk 0:00:06.4]} 43.
Rxg7+ {[%clk 0:00:21.5]} 43... Nxg7 {[%clk 0:00:07.3]} 44. Ng3 {[%clk
0:00:21.4]} 44... Nf8 {[%clk 0:00:07]} 45. Kf2 {[%clk 0:00:20.9]} 45... Nfe6
{[%clk 0:00:07.6]} 46. b5 {[%clk 0:00:19.7]} 46... cxb5 {[%clk 0:00:07.2]} 47.
Qxb5 {[%clk 0:00:20.6]} 47... c2 {[%clk 0:00:07.6]} 48. Qc4 {[%clk 0:00:19.7]}
48... Qb2 {[%clk 0:00:07.5]} 49. Ne2 {[%clk 0:00:20.1]} 49... c1=Q {[%clk
0:00:06.6]} 50. Qxc1 {[%clk 0:00:19.6]} 50... Qxc1 {[%clk 0:00:07]} 51. Nxc1
{[%clk 0:00:20.5]} 51... Nxc5 {[%clk 0:00:07.4]} 52. Ne2 {[%clk 0:00:20.8]}
52... Nxh5 {[%clk 0:00:07.9]} 53. Nc3 {[%clk 0:00:20.2]} 53... Kg6 {[%clk
0:00:08.7]} 54. Nd5 {[%clk 0:00:20.1]} 54... Nf6 {[%clk 0:00:09.2]} 55. Ne7+
{[%clk 0:00:20.1]} 55... Kf7 {[%clk 0:00:09.9]} 56. Nxf5 {[%clk 0:00:21]} 56...
h5 {[%clk 0:00:10.6]} 57. Kg3 {[%clk 0:00:19.8]} 57... Ng4 {[%clk 0:00:07.9]}
58. Kh4 {[%clk 0:00:17.5]} 58... Kf6 {[%clk 0:00:08.5]} 59. Nd6 {[%clk
0:00:13.5]} 59... Nxe3 {[%clk 0:00:08.3]} 60. Kxh5 {[%clk 0:00:14]} 60... Nf5
{[%clk 0:00:08.5]} 61. Nc4 {[%clk 0:00:13.2]} 61... e3 {[%clk 0:00:08.8]} 62.
Ne5 {[%clk 0:00:11.5]} 62... e2 {[%clk 0:00:09]} 63. Nf3 {[%clk 0:00:12]} 63...
Nd3 {[%clk 0:00:09.2]} 64. Kg4 {[%clk 0:00:11.9]} 64... Nd4 {[%clk 0:00:09.6]}
65. Nxd4 {[%clk 0:00:09.9]} 65... e1=Q {[%clk 0:00:09.8]} 66. Nf3 {[%clk
0:00:10]} 66... Nf2+ {[%clk 0:00:08.9]} 67. Kg3 {[%clk 0:00:10.1]} 67... Ne4+
{[%clk 0:00:08.8]} 68. Kg4 {[%clk 0:00:10.6]} 68... Qg3+ {[%clk 0:00:09.1]} 69.
Kh5 {[%clk 0:00:11.2]} 69... Qh3+ {[%clk 0:00:08.3]} 70. Nh4 {[%clk 0:00:10.9]}
70... Ng3+ {[%clk 0:00:09.2]} 71. Kh6 {[%clk 0:00:11]} 71... Qxh4# {[%clk
0:00:10]} 0-1

[Event "Early-Titled-Tuesday-Blitz-February-13-2024"]
[Site "Chess.com"]
[Date "2024.02.13"]
[Round "10"]
[White "McCarthyStone"]
[Black "martinmena"]
[Result "0-1"]
[WhiteElo "2351"]
[BlackElo "2136"]
[TimeControl "180+1"]
[EndTime "10:00:33 PST"]
[Termination "martinmena won by checkmate"]

1. e4 {[%clk 0:03:00.9]} 1... c6 {[%clk 0:02:58]} 2. d3 {[%clk 0:02:42.1]} 2...
d5 {[%clk 0:02:58.9]} 3. Nf3 {[%clk 0:02:41.3]} 3... dxe4 {[%clk 0:02:54.5]} 4.
dxe4 {[%clk 0:02:42.2]} 4... Qxd1+ {[%clk 0:02:54.1]} 5. Kxd1 {[%clk 0:02:43.1]}
5... Bg4 {[%clk 0:02:53.7]} 6. Be3 {[%clk 0:02:37.9]} 6... Nf6 {[%clk
0:02:52.6]} 7. Nd2 {[%clk 0:02:36.7]} 7... Nbd7 {[%clk 0:02:50.1]} 8. c3 {[%clk
0:02:35.8]} 8... Ne5 {[%clk 0:02:49.3]} 9. Kc2 {[%clk 0:02:36]} 9... Nxf3 {[%clk
0:02:48.6]} 10. gxf3 {[%clk 0:02:35.3]} 10... Bh5 {[%clk 0:02:46.4]} 11. h4
{[%clk 0:02:30.8]} 11... e6 {[%clk 0:02:39.9]} 12. Rg1 {[%clk 0:02:25.7]} 12...
Bg6 {[%clk 0:02:36.5]} 13. Bh3 {[%clk 0:02:19.6]} 13... Be7 {[%clk 0:02:34.9]}
14. Nc4 {[%clk 0:02:17.4]} 14... Nd7 {[%clk 0:02:30.5]} 15. Rad1 {[%clk
0:02:11.9]} 15... Bxh4 {[%clk 0:02:20.3]} 16. Nd6+ {[%clk 0:02:09.7]} 16... Kd8
{[%clk 0:02:05.2]} 17. Nxb7+ {[%clk 0:01:34]} 17... Kc7 {[%clk 0:02:04]} 18. Nd6
{[%clk 0:01:30.2]} 18... Rhd8 {[%clk 0:01:46.9]} 19. Rd2 {[%clk 0:01:27.2]}
19... Ne5 {[%clk 0:01:05.5]} 20. Bf4 {[%clk 0:01:26.7]} 20... Nxf3 {[%clk
0:00:38.3]} 21. Nxf7+ {[%clk 0:01:26.6]} 21... e5 {[%clk 0:00:38.4]} 22. Nxd8
{[%clk 0:01:15.3]} 22... Nxg1 {[%clk 0:00:17.8]} 23. Bxe5+ {[%clk 0:01:14.5]}
23... Kb6 {[%clk 0:00:16.1]} 24. Bd4+ {[%clk 0:01:10.9]} 24... c5 {[%clk
0:00:15.5]} 25. Bxg7 {[%clk 0:00:43.8]} 25... Rxd8 {[%clk 0:00:10.5]} 26. Rxd8
{[%clk 0:00:40.2]} 26... Bxd8 {[%clk 0:00:11.4]} 27. Bg2 {[%clk 0:00:38.9]}
27... Ne2 {[%clk 0:00:08.6]} 28. Be5 {[%clk 0:00:39.2]} 28... Bc7 {[%clk
0:00:07.6]} 29. Bf6 {[%clk 0:00:32.2]} 29... Nf4 {[%clk 0:00:06.1]} 30. Bf3
{[%clk 0:00:32.8]} 30... h5 {[%clk 0:00:03.8]} 31. Kd2 {[%clk 0:00:32.5]} 31...
h4 {[%clk 0:00:03.9]} 32. Bxh4 {[%clk 0:00:32.2]} 32... Ne6 {[%clk 0:00:02.9]}
33. b3 {[%clk 0:00:29.9]} 33... Bf4+ {[%clk 0:00:03.1]} 34. Ke2 {[%clk
0:00:28.4]} 34... Ng5 {[%clk 0:00:03.7]} 35. Bg2 {[%clk 0:00:27.1]} 35... Nf7
{[%clk 0:00:02.1]} 36. f3 {[%clk 0:00:27.5]} 36... Ne5 {[%clk 0:00:02.2]} 37.
Bf2 {[%clk 0:00:28.4]} 37... Kc6 {[%clk 0:00:01.9]} 38. Bh3 {[%clk 0:00:26.2]}
38... c4 {[%clk 0:00:02.1]} 39. Be6 {[%clk 0:00:25]} 39... a6 {[%clk 0:00:02.1]}
40. Bd5+ {[%clk 0:00:25.4]} 40... Kb5 {[%clk 0:00:01.7]} 41. a4+ {[%clk
0:00:25.2]} 41... Ka5 {[%clk 0:00:01.8]} 42. bxc4 {[%clk 0:00:21.1]} 42... Kxa4
{[%clk 0:00:01.9]} 43. c5 {[%clk 0:00:21.7]} 43... Kb5 {[%clk 0:00:02.3]} 44.
Bd4 {[%clk 0:00:21.9]} 44... Nc6 {[%clk 0:00:01.7]} 45. c4+ {[%clk 0:00:20.3]}
45... Kb4 {[%clk 0:00:02.2]} 46. Bxc6 {[%clk 0:00:21]} 46... Kxc4 {[%clk
0:00:02.9]} 47. Bd5+ {[%clk 0:00:21.6]} 47... Kxd4 {[%clk 0:00:02.9]} 48. c6
{[%clk 0:00:22.5]} 48... Bd6 {[%clk 0:00:02.4]} 49. Kd2 {[%clk 0:00:23]} 49...
a5 {[%clk 0:00:02.8]} 50. Kc2 {[%clk 0:00:22.7]} 50... a4 {[%clk 0:00:03.3]} 51.
Kb2 {[%clk 0:00:23.2]} 51... Kc5 {[%clk 0:00:03.9]} 52. Ka3 {[%clk 0:00:23.4]}
52... Kb5+ {[%clk 0:00:04.6]} 53. Ka2 {[%clk 0:00:23.7]} 53... Be5 {[%clk
0:00:02.9]} 54. Ka3 {[%clk 0:00:22.1]} 54... Be8 {[%clk 0:00:03.2]} 55. Ka2
{[%clk 0:00:23]} 55... Bxc6 {[%clk 0:00:03.2]} 56. Bxc6+ {[%clk 0:00:23.1]}
56... Kxc6 {[%clk 0:00:04.1]} 57. Ka3 {[%clk 0:00:24]} 57... Kb5 {[%clk
0:00:04.8]} 58. Ka2 {[%clk 0:00:24.6]} 58... Bd6 {[%clk 0:00:04.8]} 59. Kb2
{[%clk 0:00:23.8]} 59... Be5+ {[%clk 0:00:04.9]} 60. Ka3 {[%clk 0:00:24.1]}
60... Ka5 {[%clk 0:00:05.5]} 61. Ka2 {[%clk 0:00:25]} 61... Kb4 {[%clk 0:00:06]}
62. Kb1 {[%clk 0:00:25.5]} 62... Kb3 {[%clk 0:00:05.5]} 63. Kc1 {[%clk
0:00:22.9]} 63... a3 {[%clk 0:00:06.1]} 64. Kd2 {[%clk 0:00:23.5]} 64... a2
{[%clk 0:00:06.2]} 65. f4 {[%clk 0:00:24.4]} 65... Bxf4+ {[%clk 0:00:06]} 66.
Kd3 {[%clk 0:00:25]} 66... a1=Q {[%clk 0:00:05.7]} 67. e5 {[%clk 0:00:25.9]}
67... Qc3+ {[%clk 0:00:06.3]} 68. Ke4 {[%clk 0:00:26.2]} 68... Qe3+ {[%clk
0:00:06.7]} 69. Kd5 {[%clk 0:00:26.3]} 69... Qxe5+ {[%clk 0:00:07.6]} 70. Kc6
{[%clk 0:00:27.2]} 70... Qe6+ {[%clk 0:00:07.3]} 71. Kb5 {[%clk 0:00:28.1]}
71... Qd5+ {[%clk 0:00:06.9]} 72. Kb6 {[%clk 0:00:28.1]} 72... Kb4 {[%clk
0:00:06.2]} 73. Ka7 {[%clk 0:00:28.4]} 73... Qd7+ {[%clk 0:00:06.8]} 74. Kb6
{[%clk 0:00:28.1]} 74... Be3+ {[%clk 0:00:07.2]} 75. Ka6 {[%clk 0:00:28.6]}
75... Qb5# {[%clk 0:00:07.2]} 0-1

[Event "Early-Titled-Tuesday-Blitz-February-13-2024"]
[Site "Chess.com"]
[Date "2024.02.13"]
[Round "10"]
[White "Shahdad2007"]
[Black "KNVB"]
[Result "1/2-1/2"]
[WhiteElo "2521"]
[BlackElo "2854"]
[TimeControl "180+1"]
[EndTime "10:00:35 PST"]
[Termination "Game drawn by repetition"]

1. e4 {[%clk 0:03:00.9]} 1... d5 {[%clk 0:02:58.5]} 2. exd5 {[%clk 0:03:00.7]}
2... Qxd5 {[%clk 0:02:59.4]} 3. Nc3 {[%clk 0:03:01]} 3... Qe5+ {[%clk
0:02:59.9]} 4. Be2 {[%clk 0:02:59.3]} 4... c6 {[%clk 0:03:00.3]} 5. d4 {[%clk
0:02:59.2]} 5... Qc7 {[%clk 0:03:01.2]} 6. Nf3 {[%clk 0:02:59.3]} 6... Bf5
{[%clk 0:03:01.4]} 7. O-O {[%clk 0:03:00]} 7... e6 {[%clk 0:03:01.7]} 8. Ne5
{[%clk 0:02:57.3]} 8... Nd7 {[%clk 0:03:01.3]} 9. Bf4 {[%clk 0:02:57]} 9... Bd6
{[%clk 0:03:01.8]} 10. Bf3 {[%clk 0:02:33.2]} 10... Nxe5 {[%clk 0:02:59.4]} 11.
dxe5 {[%clk 0:02:27.2]} 11... Bxe5 {[%clk 0:03:00.3]} 12. Bxe5 {[%clk
0:02:25.2]} 12... Qxe5 {[%clk 0:03:01.2]} 13. Re1 {[%clk 0:02:25.5]} 13... Qc7
{[%clk 0:02:59.2]} 14. Be4 {[%clk 0:02:22]} 14... Ne7 {[%clk 0:02:51.8]} 15. Qf3
{[%clk 0:02:09.4]} 15... O-O {[%clk 0:02:48.5]} 16. Bxf5 {[%clk 0:02:09.3]}
16... Nxf5 {[%clk 0:02:49.4]} 17. Ne4 {[%clk 0:02:09.1]} 17... Rad8 {[%clk
0:02:45.3]} 18. c3 {[%clk 0:02:08.2]} 18... Rd5 {[%clk 0:02:35.7]} 19. Rad1
{[%clk 0:02:05.3]} 19... Rfd8 {[%clk 0:02:34.1]} 20. c4 {[%clk 0:02:04.5]} 20...
R5d7 {[%clk 0:01:35.5]} 21. Nc5 {[%clk 0:01:59]} 21... Rxd1 {[%clk 0:01:19.7]}
22. Rxd1 {[%clk 0:01:58.8]} 22... b6 {[%clk 0:01:15.6]} 23. Ne4 {[%clk
0:01:57.1]} 23... h6 {[%clk 0:01:10.2]} 24. g3 {[%clk 0:01:53.3]} 24... c5
{[%clk 0:01:08.2]} 25. Rxd8+ {[%clk 0:01:46.3]} 25... Qxd8 {[%clk 0:01:08.4]}
26. Nc3 {[%clk 0:01:47]} 26... Qd2 {[%clk 0:00:21.2]} 27. Qe2 {[%clk 0:01:44.3]}
27... Qxe2 {[%clk 0:00:17.1]} 28. Nxe2 {[%clk 0:01:44.1]} 28... Kf8 {[%clk
0:00:13.5]} 29. Nc3 {[%clk 0:01:43.6]} 29... Ke7 {[%clk 0:00:05.6]} 30. Kf1
{[%clk 0:01:39.3]} 30... Nd6 {[%clk 0:00:05.2]} 31. b3 {[%clk 0:01:38.9]} 31...
f5 {[%clk 0:00:04.8]} 32. Ke2 {[%clk 0:01:38.7]} 32... g5 {[%clk 0:00:04.8]} 33.
h3 {[%clk 0:01:37.3]} 33... Kf6 {[%clk 0:00:03.7]} 34. Kd3 {[%clk 0:01:36.8]}
34... h5 {[%clk 0:00:01.9]} 35. Ke3 {[%clk 0:01:34.8]} 35... g4 {[%clk
0:00:02.2]} 36. h4 {[%clk 0:01:34.2]} 36... e5 {[%clk 0:00:02.3]} 37. Nd5+
{[%clk 0:01:33.1]} 37... Ke6 {[%clk 0:00:03]} 38. Nc7+ {[%clk 0:01:33.5]} 38...
Kd7 {[%clk 0:00:03.2]} 39. Nd5 {[%clk 0:01:34.2]} 39... Ke6 {[%clk 0:00:03.6]}
40. Nc7+ {[%clk 0:01:34.4]} 40... Kf7 {[%clk 0:00:04]} 41. Nd5 {[%clk 0:01:33]}
41... Ne8 {[%clk 0:00:02.1]} 42. Nc3 {[%clk 0:01:31.4]} 42... Ke6 {[%clk
0:00:02]} 43. Nd5 {[%clk 0:01:30.5]} 43... Kd6 {[%clk 0:00:01.2]} 44. Nc3 {[%clk
0:01:30.4]} 44... Nf6 {[%clk 0:00:01.3]} 45. Nb5+ {[%clk 0:01:30.5]} 45... Kd7
{[%clk 0:00:01.5]} 46. Nxa7 {[%clk 0:01:30.6]} 46... Ne4 {[%clk 0:00:02]} 47.
Nb5 {[%clk 0:01:30.8]} 47... Nf6 {[%clk 0:00:01.8]} 48. Nc3 {[%clk 0:01:28.4]}
48... Kd6 {[%clk 0:00:02]} 49. a3 {[%clk 0:01:27.8]} 49... Ke6 {[%clk
0:00:02.2]} 50. b4 {[%clk 0:01:27.8]} 50... Kd6 {[%clk 0:00:02.2]} 51. Nb5+
{[%clk 0:01:26.5]} 51... Kc6 {[%clk 0:00:02.3]} 52. Nc3 {[%clk 0:01:26]} 52...
Kc7 {[%clk 0:00:02.5]} 53. bxc5 {[%clk 0:01:24.8]} 53... bxc5 {[%clk 0:00:03.4]}
54. a4 {[%clk 0:01:19.9]} 54... Kc6 {[%clk 0:00:02.7]} 55. a5 {[%clk 0:01:19.6]}
55... Ne8 {[%clk 0:00:03]} 56. Nd5 {[%clk 0:01:17.7]} 56... Nd6 {[%clk
0:00:03.7]} 57. Kd3 {[%clk 0:01:17.7]} 57... Kb7 {[%clk 0:00:01.5]} 58. Nf6
{[%clk 0:01:15.6]} 58... f4 {[%clk 0:00:01.8]} 59. Nxh5 {[%clk 0:01:15.2]} 59...
Nf5 {[%clk 0:00:01.8]} 60. gxf4 {[%clk 0:01:14.9]} 60... exf4 {[%clk 0:00:01.9]}
61. Nxf4 {[%clk 0:01:15.1]} 61... Nxh4 {[%clk 0:00:02.6]} 62. Ne6 {[%clk
0:01:15.3]} 62... Kc6 {[%clk 0:00:01.9]} 63. a6 {[%clk 0:01:15]} 63... Nf3
{[%clk 0:00:02.5]} 64. Nxc5 {[%clk 0:01:12.9]} 64... Ne5+ {[%clk 0:00:02]} 65.
Kd4 {[%clk 0:01:13.2]} 65... Nf3+ {[%clk 0:00:01.9]} 66. Ke3 {[%clk 0:01:13.6]}
66... Kb6 {[%clk 0:00:02.1]} 67. Nd7+ {[%clk 0:01:11.8]} 67... Kxa6 {[%clk
0:00:02.1]} 68. Kf4 {[%clk 0:01:08.3]} 68... Nd2 {[%clk 0:00:02.3]} 69. c5
{[%clk 0:01:08.2]} 69... Kb5 {[%clk 0:00:02.6]} 70. Kxg4 {[%clk 0:01:08.4]}
70... Kc6 {[%clk 0:00:02.6]} 71. Ne5+ {[%clk 0:01:07]} 71... Kxc5 {[%clk
0:00:02.6]} 72. f4 {[%clk 0:01:07.6]} 72... Kd5 {[%clk 0:00:02.7]} 73. Kf5
{[%clk 0:01:06.2]} 73... Kd6 {[%clk 0:00:02.9]} 74. Kf6 {[%clk 0:01:05]} 74...
Ne4+ {[%clk 0:00:02.9]} 75. Kg6 {[%clk 0:01:05.3]} 75... Ng3 {[%clk 0:00:02.7]}
76. Nf3 {[%clk 0:01:03.1]} 76... Kd5 {[%clk 0:00:01.4]} 77. Ng5 {[%clk
0:01:02.3]} 77... Kd6 {[%clk 0:00:01.7]} 78. Nf7+ {[%clk 0:01:00.3]} 78... Ke7
{[%clk 0:00:02]} 79. Ng5 {[%clk 0:01:00.1]} 79... Kf8 {[%clk 0:00:02]} 80. Nf3
{[%clk 0:00:58.5]} 80... Kg8 {[%clk 0:00:02.2]} 81. Ne5 {[%clk 0:00:58.3]} 81...
Kf8 {[%clk 0:00:02.6]} 82. Nd7+ {[%clk 0:00:58.5]} 82... Ke7 {[%clk 0:00:02.9]}
83. Nf6 {[%clk 0:00:59.1]} 83... Kf8 {[%clk 0:00:02.7]} 84. Kg5 {[%clk
0:00:56.6]} 84... Kf7 {[%clk 0:00:02.7]} 85. Nh5 {[%clk 0:00:53.7]} 85... Nxh5
{[%clk 0:00:02.5]} 86. Kxh5 {[%clk 0:00:54]} 86... Kf6 {[%clk 0:00:03.4]} 87.
Kg4 {[%clk 0:00:54.6]} 87... Kg6 {[%clk 0:00:03.9]} 88. f5+ {[%clk 0:00:55.2]}
88... Kf6 {[%clk 0:00:04.5]} 89. Kf4 {[%clk 0:00:55.8]} 89... Kf7 {[%clk
0:00:05.3]} 90. Ke4 {[%clk 0:00:56.4]} 90... Kf6 {[%clk 0:00:06.2]} 91. Kf4
{[%clk 0:00:56.7]} 91... Kf7 {[%clk 0:00:07.1]} 92. Kg5 {[%clk 0:00:57.4]} 92...
Kg7 {[%clk 0:00:07.8]} 93. Kg4 {[%clk 0:00:58.1]} 93... Kf6 {[%clk 0:00:08.7]}
94. Kf4 {[%clk 0:00:58.8]} 1/2-1/2

[Event "Early-Titled-Tuesday-Blitz-February-13-2024"]
[Site "Chess.com"]
[Date "2024.02.13"]
[Round "10"]
[White "Let_it_be_1"]
[Black "EsmeraldasAnderson03"]
[Result "1/2-1/2"]
[WhiteElo "2556"]
[BlackElo "2411"]
[TimeControl "180+1"]
[EndTime "10:00:45 PST"]
[Termination "Game drawn by repetition"]

1. e4 {[%clk 0:03:00.9]} 1... c5 {[%clk 0:01:44.5]} 2. Nf3 {[%clk 0:02:58.1]}
2... d6 {[%clk 0:01:44.9]} 3. d4 {[%clk 0:02:57.3]} 3... cxd4 {[%clk 0:01:45.8]}
4. Nxd4 {[%clk 0:02:56.2]} 4... Nf6 {[%clk 0:01:46.5]} 5. Nc3 {[%clk 0:02:56]}
5... a6 {[%clk 0:01:47.1]} 6. Be2 {[%clk 0:02:55.9]} 6... e5 {[%clk 0:01:47.3]}
7. Nb3 {[%clk 0:02:56.2]} 7... Be7 {[%clk 0:01:47.8]} 8. O-O {[%clk 0:02:56.5]}
8... O-O {[%clk 0:01:48.5]} 9. Kh1 {[%clk 0:02:57]} 9... Nc6 {[%clk 0:01:49.1]}
10. f4 {[%clk 0:02:56.9]} 10... exf4 {[%clk 0:01:50]} 11. Bxf4 {[%clk
0:02:57.2]} 11... Ne5 {[%clk 0:01:50.9]} 12. Qe1 {[%clk 0:02:55.7]} 12... Be6
{[%clk 0:01:51.5]} 13. Rd1 {[%clk 0:02:55.2]} 13... Qb6 {[%clk 0:01:50]} 14. Qg3
{[%clk 0:02:52.9]} 14... Qc7 {[%clk 0:01:50.6]} 15. Nd4 {[%clk 0:02:51.5]} 15...
Kh8 {[%clk 0:01:49.9]} 16. Bg5 {[%clk 0:02:46.3]} 16... b5 {[%clk 0:01:27.1]}
17. a3 {[%clk 0:02:45.5]} 17... Rab8 {[%clk 0:01:26.7]} 18. Nf5 {[%clk
0:02:37.3]} 18... Bxf5 {[%clk 0:01:25]} 19. Rxf5 {[%clk 0:02:37.5]} 19... Ng8
{[%clk 0:00:45.3]} 20. Nd5 {[%clk 0:01:24]} 20... Qb7 {[%clk 0:00:45.2]} 21. Bf4
{[%clk 0:01:11.9]} 21... Rbe8 {[%clk 0:00:44.1]} 22. Bxe5 {[%clk 0:01:05.4]}
22... dxe5 {[%clk 0:00:43.7]} 23. Nxe7 {[%clk 0:01:02.9]} 23... Rxe7 {[%clk
0:00:27.9]} 24. Rxe5 {[%clk 0:01:02.6]} 24... Rxe5 {[%clk 0:00:18.7]} 25. Qxe5
{[%clk 0:01:02.7]} 25... Nf6 {[%clk 0:00:19.4]} 26. Bf3 {[%clk 0:00:59.3]} 26...
Re8 {[%clk 0:00:19.3]} 27. Qf5 {[%clk 0:00:54.8]} 27... Qe7 {[%clk 0:00:17.3]}
28. h3 {[%clk 0:00:41]} 28... g6 {[%clk 0:00:17.7]} 29. Qf4 {[%clk 0:00:39.9]}
29... Kg7 {[%clk 0:00:18.1]} 30. Rd6 {[%clk 0:00:37.6]} 30... Nxe4 {[%clk
0:00:13.4]} 31. Bxe4 {[%clk 0:00:35.8]} 31... Qxe4 {[%clk 0:00:14.3]} 32. Qxe4
{[%clk 0:00:35.2]} 32... Rxe4 {[%clk 0:00:15.2]} 33. Rxa6 {[%clk 0:00:35.2]}
33... Re2 {[%clk 0:00:14.3]} 34. Rc6 {[%clk 0:00:35.3]} 34... Re1+ {[%clk
0:00:14]} 35. Kh2 {[%clk 0:00:35.4]} 35... Rb1 {[%clk 0:00:14.9]} 36. b3 {[%clk
0:00:34]} 36... Ra1 {[%clk 0:00:15]} 37. Rc5 {[%clk 0:00:33.7]} 37... Rxa3
{[%clk 0:00:14.3]} 38. Rxb5 {[%clk 0:00:34]} 38... Ra2 {[%clk 0:00:15.2]} 39. c4
{[%clk 0:00:33.7]} 39... f5 {[%clk 0:00:15.8]} 40. Kg3 {[%clk 0:00:31.1]} 40...
Kf6 {[%clk 0:00:14.8]} 41. h4 {[%clk 0:00:29.6]} 41... Rc2 {[%clk 0:00:12.3]}
42. c5 {[%clk 0:00:23.4]} 42... Ke5 {[%clk 0:00:11]} 43. b4 {[%clk 0:00:21.4]}
43... Rc3+ {[%clk 0:00:11.4]} 44. Kh2 {[%clk 0:00:21.1]} 44... f4 {[%clk
0:00:11.7]} 45. Rb8 {[%clk 0:00:20.3]} 45... Rc2 {[%clk 0:00:10.6]} 46. Rf8
{[%clk 0:00:16.5]} 46... Rb2 {[%clk 0:00:09.9]} 47. c6 {[%clk 0:00:15.9]} 47...
Kd6 {[%clk 0:00:09.9]} 48. Rxf4 {[%clk 0:00:13.9]} 48... Kxc6 {[%clk 0:00:09.7]}
49. Rf7 {[%clk 0:00:10.3]} 49... Rxb4 {[%clk 0:00:08.1]} 50. Rxh7 {[%clk
0:00:10.5]} 50... Kd5 {[%clk 0:00:08.8]} 51. Kg3 {[%clk 0:00:09.7]} 51... Ke5
{[%clk 0:00:08.5]} 52. Rf7 {[%clk 0:00:10.1]} 52... Ra4 {[%clk 0:00:07.2]} 53.
Rf3 {[%clk 0:00:09]} 53... Ke6 {[%clk 0:00:06.5]} 54. Kh3 {[%clk 0:00:08.1]}
54... Ke5 {[%clk 0:00:05.6]} 55. g3 {[%clk 0:00:07.6]} 55... Ke6 {[%clk
0:00:05.3]} 56. g4 {[%clk 0:00:08]} 56... Ke5 {[%clk 0:00:05.9]} 57. g5 {[%clk
0:00:08.3]} 57... Rf4 {[%clk 0:00:04.1]} 58. Kg3 {[%clk 0:00:05.6]} 58... Rd4
{[%clk 0:00:01.9]} 59. Rf6 {[%clk 0:00:02.9]} 59... Rd3+ {[%clk 0:00:02.5]} 60.
Kg4 {[%clk 0:00:03.1]} 60... Rd4+ {[%clk 0:00:03]} 61. Kg3 {[%clk 0:00:02.8]}
61... Rd3+ {[%clk 0:00:03.7]} 62. Rf3 {[%clk 0:00:03.5]} 62... Rd4 {[%clk
0:00:04.2]} 63. Re3+ {[%clk 0:00:02.7]} 63... Kf5 {[%clk 0:00:04.2]} 64. Rf3+
{[%clk 0:00:03.6]} 64... Ke5 {[%clk 0:00:04.9]} 1/2-1/2